lending/lending_fUSD_20250516
["ID","MTS","AMOUNT","RATE_DAILY","PERIOD"]
[361302474,1747438240217,-463.10007095,0.00016438,2]
[361302475,1747438240227,-456.68,0.00016438,2]
[361302476,1747438240236,-400.0,0.00016438,2]
[361302477,1747438240245,-400.0,0.00016438,2]
[361302478,1747438240255,-573.46,0.00016438,2]
[361302479,1747438240264,-400.0,0.00016438,2]
[361302480,1747438240273,-400.0,0.00016438,2]
[361302481,1747438240282,-400.0,0.00016438,2]
[361302482,1747438240291,-354.03,0.00016438,2]
[361302483,1747438240300,-400.0,0.00016438,2]
[361302484,1747438240313,-400.0,0.00016438,2]
[361302485,1747438240323,-400.0,0.00016438,2]
[361302486,1747438240333,-400.0,0.00016438,2]
[361302487,1747438240343,-400.0,0.00016438,2]
[361302488,1747438240354,-400.0,0.00016438,2]
[361302489,1747438240363,-400.0,0.00016438,2]
[361302490,1747438240373,-400.0,0.00016438,2]
[361302491,1747438240383,-400.0,0.00016438,2]
[361302492,1747438240393,-400.0,0.00016438,2]
[361302493,1747438240403,-447.48,0.00016438,2]
[361302494,1747438240412,-400.0,0.00016438,2]
[361302495,1747438240421,-400.0,0.00016438,2]
[361302496,1747438240431,-400.0,0.00016438,2]
[361302497,1747438240440,-650.71,0.00016438,2]
[361302498,1747438240450,-400.0,0.00016438,2]
[361302499,1747438240459,-400.0,0.00016438,2]
[361302500,1747438240469,-400.0,0.00016438,2]
[361302501,1747438240479,-500.0,0.00016438,2]
[361302502,1747438240489,-536.16,0.00016438,2]
[361302503,1747438240499,-400.0,0.00016438,2]
[361302504,1747438240508,-400.0,0.00016438,2]
[361302505,1747438240518,-513.39,0.00016438,2]
[361302506,1747438240527,-400.0,0.00016438,2]
[361302507,1747438240537,-400.0,0.00016438,2]
[361302508,1747438240547,-486.1,0.00016438,2]
[361302509,1747438240556,-400.02,0.00016438,2]
[361302510,1747438240566,-400.0,0.00016438,2]
[361302511,1747438240575,-336.11288196,0.00016438,2]
[361302512,1747438240585,-400.0,0.00016438,2]
[361302513,1747438240594,-400.0,0.00016438,2]
[361302514,1747438240603,-490.02,0.00016438,2]
[361302515,1747438240613,-316.24572689,0.00016438,2]
[361302516,1747438240622,-400.0,0.00016438,2]
[361302517,1747438240632,-401.27469673,0.00016438,2]
[361302518,1747438240642,-500.0,0.00016438,2]
[361302519,1747438240651,-400.0,0.00016438,2]
[361302520,1747438240660,-400.0,0.00016438,2]
[361302521,1747438240670,-406.4666124,0.00016438,2]
[361302522,1747438240679,-400.0,0.00016438,2]
[361302523,1747438240688,-32.06630938,0.00016438,2]
[361302530,1747438243015,150.0,0.00014,5]
[361302531,1747438243752,-1157.59,0.00016164,2]
[361302532,1747438243762,-367.93369062,0.00016438,2]
[361302533,1747438243772,-400.0,0.00016438,2]
[361302534,1747438243781,-400.0,0.00016438,2]
[361302535,1747438243791,-400.0,0.00016438,2]
[361302536,1747438243800,-472.65,0.00016438,2]
[361302537,1747438243810,-354.22638001,0.00016438,2]
[361302538,1747438243819,-177.54297621,0.00016438,2]
[361302539,1747438243829,-400.0,0.00016438,2]
[361302540,1747438243838,-462.37843604,0.00016438,2]
[361302541,1747438243847,-460.18934567,0.00016438,2]
[361302542,1747438243857,-417.89,0.00016438,2]
[361302543,1747438243867,-400.0,0.00016438,2]
[361302544,1747438243876,-428.82,0.00016438,2]
[361302545,1747438243886,-703.26,0.00016438,2]
[361302546,1747438243895,-400.0,0.00016438,2]
[361302547,1747438243905,-400.0,0.00016438,2]
[361302549,1747438243914,-618.72,0.00016438,2]
[361302550,1747438243924,-400.0,0.00016438,2]
[361302551,1747438243933,-400.0,0.00016438,2]
[361302552,1747438243943,-400.0,0.00016438,2]
[361302553,1747438243952,-400.0,0.00016438,2]
[361302554,1747438243962,-400.0,0.00016438,2]
[361302555,1747438243971,-400.0,0.00016438,2]
[361302556,1747438243981,-400.0,0.00016438,2]
[361302557,1747438243990,-593.26,0.00016438,2]
[361302558,1747438244000,-400.0,0.00016438,2]
[361302559,1747438244010,-400.0,0.00016438,2]
[361302560,1747438244019,-403.02675574,0.00016438,2]
[361302561,1747438244029,-400.0,0.00016438,2]
[361302563,1747438244038,-644.24,0.00016438,2]
[361302565,1747438244047,-902.76,0.00016438,2]
[361302567,1747438244057,-400.0,0.00016438,2]
[361302569,1747438244066,-400.0,0.00016438,2]
[361302571,1747438244075,-400.0,0.00016438,2]
[361302572,1747438244084,-400.0,0.00016438,2]
[361302573,1747438244094,-400.0,0.00016438,2]
[361302574,1747438244103,-400.0,0.00016438,2]
[361302575,1747438244112,-400.0,0.00016438,2]
[361302576,1747438244121,-400.0,0.00016438,2]
[361302577,1747438244130,-400.0,0.00016438,2]
[361302578,1747438244140,-482.18,0.00016438,2]
[361302579,1747438244149,-400.0,0.00016438,2]
[361302580,1747438244159,-400.0,0.00016438,2]
[361302581,1747438244170,-400.0,0.00016438,2]
[361302582,1747438244179,-466.5,0.00016438,2]
[361302583,1747438244189,-400.0,0.00016438,2]
[361302584,1747438244198,-400.0,0.00016438,2]
[361302585,1747438244207,-400.0,0.00016438,2]
[361302586,1747438244216,-400.0,0.00016438,2]
[361302587,1747438244226,-400.0,0.00016438,2]
[361302588,1747438244235,-400.0,0.00016438,2]
[361302589,1747438244244,-400.0,0.00016438,2]
[361302590,1747438244255,-400.0,0.00016438,2]
[361302591,1747438244265,-400.0,0.00016438,2]
[361302592,1747438244274,-400.0,0.00016438,2]
[361302593,1747438244283,-400.0,0.00016438,2]
[361302594,1747438244292,-400.0,0.00016438,2]
[361302595,1747438244301,-400.0,0.00016438,2]
[361302596,1747438244310,-400.0,0.00016438,2]
[361302597,1747438244319,-400.0,0.00016438,2]
[361302598,1747438244329,-400.0,0.00016438,2]
[361302599,1747438244338,-400.0,0.00016438,2]
[361302600,1747438244347,-400.0,0.00016438,2]
[361302601,1747438244356,-162.93294249,0.00016438,2]
[361302602,1747438244365,-904.58,0.00016438,2]
[361302603,1747438244374,-400.0,0.00016438,2]
[361302604,1747438244383,-400.0,0.00016438,2]
[361302605,1747438244392,-400.0,0.00016438,2]
[361302606,1747438244402,-400.0,0.00016438,2]
[361302607,1747438244411,-400.0,0.00016438,2]
[361302608,1747438244420,-400.0,0.00016438,2]
[361302609,1747438244429,-612.54,0.00016438,2]
[361302610,1747438244439,-400.0,0.00016438,2]
[361302611,1747438244448,-400.0,0.00016438,2]
[361302612,1747438244457,-400.0,0.00016438,2]
[361302613,1747438244466,-400.0,0.00016438,2]
[361302614,1747438244476,-241.05442539,0.00016438,2]
[361302615,1747438244485,-400.0,0.00016438,2]
[361302616,1747438244494,-400.0,0.00016438,2]
[361302617,1747438244503,-400.0,0.00016438,2]
[361302618,1747438244513,-400.0,0.00016438,2]
[361302619,1747438244522,-400.0,0.00016438,2]
[361302620,1747438244531,-400.0,0.00016438,2]
[361302621,1747438244540,-400.0,0.00016438,2]
[361302622,1747438244551,-400.0,0.00016438,2]
[361302623,1747438244560,-400.0,0.00016438,2]
[361302624,1747438244570,-400.0,0.00016438,2]
[361302625,1747438244580,-400.0,0.00016438,2]
[361302626,1747438244590,-400.0,0.00016438,2]
[361302627,1747438244599,-421.94503198,0.00016438,2]
[361302628,1747438244609,-400.0,0.00016438,2]
[361302629,1747438244618,-181.47039778,0.00016438,2]
[361302630,1747438244628,-400.0,0.00016438,2]
[361302631,1747438244637,-400.0,0.00016438,2]
[361302632,1747438244646,-400.0,0.00016438,2]
[361302633,1747438244657,-447.3,0.00016438,2]
[361302634,1747438244668,-500.0,0.00016438,2]
[361302635,1747438244677,-500.0,0.00016438,2]
[361302636,1747438244686,-659.39,0.00016438,2]
[361302637,1747438244695,-400.0,0.00016438,2]
[361302638,1747438244705,-503.27595892,0.00016438,2]
[361302639,1747438244719,-465.11,0.00016438,2]
[361302640,1747438244728,-502.92841314,0.00016438,2]
[361302641,1747438244737,-475.27,0.00016438,2]
[361302642,1747438244747,-400.0,0.00016438,2]
[361302643,1747438244756,-400.0,0.00016438,2]
[361302644,1747438244766,-400.0,0.00016438,2]
[361302645,1747438244776,-1691.67,0.00016438,2]
[361302646,1747438244785,-400.0,0.00016438,2]
[361302647,1747438244795,-400.0,0.00016438,2]
[361302648,1747438244804,-197.67485753,0.00016438,2]
[361302649,1747438244813,-400.0,0.00016438,2]
[361302650,1747438244823,-400.0,0.00016438,2]
[361302651,1747438244833,-800.64,0.00016438,2]
[361302652,1747438244842,-1790.53,0.00016438,2]
[361302653,1747438244851,-477.58515554,0.00016438,2]
[361302654,1747438244860,-191.81781011,0.00016438,2]
[361302655,1747438244872,-400.0,0.00016438,2]
[361302656,1747438244882,-400.0,0.00016438,2]
[361302657,1747438244892,-400.0,0.00016438,2]
[361302658,1747438244902,-520.62,0.00016438,2]
[361302659,1747438244912,-400.0,0.00016438,2]
[361302660,1747438244921,-467.91,0.00016438,2]
[361302661,1747438244932,-400.0,0.00016438,2]
[361302662,1747438244941,-400.0,0.00016438,2]
[361302663,1747438244950,-400.0,0.00016438,2]
[361302664,1747438244959,-400.0,0.00016438,2]
[361302665,1747438244969,-400.0,0.00016438,2]
[361302666,1747438244978,-400.0,0.00016438,2]
[361302667,1747438244987,-400.0,0.00016438,2]
[361302668,1747438244997,-400.0,0.00016438,2]
[361302669,1747438245007,-493.6,0.00016438,2]
[361302670,1747438245016,-433.63,0.00016438,2]
[361302671,1747438245026,-400.0,0.00016438,2]
[361302672,1747438245036,-400.0,0.00016438,2]
[361302673,1747438245046,-1074.01,0.00016438,2]
[361302674,1747438245055,-400.0,0.00016438,2]
[361302675,1747438245066,-280.13096752,0.00016438,2]
[361302676,1747438245076,-400.0,0.00016438,2]
[361302677,1747438245086,-400.0,0.00016438,2]
[361302678,1747438245095,-930.47,0.00016438,2]
[361302679,1747438245105,-400.0,0.00016438,2]
[361302680,1747438245115,-400.0,0.00016438,2]
[361302681,1747438245124,-500.0,0.00016438,2]
[361302682,1747438245133,-450.0,0.00016438,2]
[361302683,1747438245142,-400.0,0.00016438,2]
[361302684,1747438245151,-400.0,0.00016438,2]
[361302685,1747438245160,-215.20153337,0.00016438,2]
[361302686,1747438245170,-1112.3,0.00016438,2]
[361302687,1747438245180,-400.0,0.00016438,2]
[361302688,1747438245190,-400.0,0.00016438,2]
[361302689,1747438245199,-400.0,0.00016438,2]
[361302690,1747438245210,-522.16,0.00016438,2]
[361302691,1747438245220,-400.0,0.00016438,2]
[361302692,1747438245229,-500.0,0.00016438,2]
[361302693,1747438245239,-400.0,0.00016438,2]
[361302695,1747438245249,-400.0,0.00016438,2]
[361302697,1747438245258,-400.0,0.00016438,2]
[361302699,1747438245267,-400.0,0.00016438,2]
[361302701,1747438245276,-400.0,0.00016438,2]
[361302702,1747438245286,-400.0,0.00016438,2]
[361302703,1747438245295,-665.83,0.00016438,2]
[361302704,1747438245305,-400.0,0.00016438,2]
[361302705,1747438245315,-444.57,0.00016438,2]
[361302706,1747438245324,-400.0,0.00016438,2]
[361302707,1747438245334,-368.42783264,0.00016438,2]
[361302708,1747438245362,-278.20216736,0.00016438,2]
[361302709,1747438245371,-400.0,0.00016438,2]
[361302710,1747438245381,-450.0,0.00016438,2]
[361302713,1747438245391,-1589.04,0.00016438,2]
[361302716,1747438245401,-663.64,0.00016438,2]
[361302717,1747438245410,-796.13,0.00016438,2]
[361302718,1747438245419,-400.0,0.00016438,2]
[361302719,1747438245429,-1000.0,0.00016438,2]
[361302720,1747438245438,-638.95,0.00016438,2]
[361302721,1747438245448,-400.0,0.00016438,2]
[361302722,1747438245457,-400.0,0.00016438,2]
[361302723,1747438245466,-660.73,0.00016438,2]
[361302724,1747438245476,-400.0,0.00016438,2]
[361302725,1747438245485,-400.0,0.00016438,2]
[361302726,1747438245495,-1020.72,0.00016438,2]
[361302727,1747438245504,-400.0,0.00016438,2]
[361302728,1747438245514,-400.0,0.00016438,2]
[361302729,1747438245523,-318.61422986,0.00016438,2]
[361302730,1747438245533,-400.0,0.00016438,2]
[361302731,1747438245542,-532.1,0.00016438,2]
[361302732,1747438245552,-400.0,0.00016438,2]
[361302733,1747438245562,-400.0,0.00016438,2]
[361302734,1747438245571,-400.0,0.00016438,2]
[361302735,1747438245583,-398.04436202,0.00016438,2]
[361302736,1747438245592,-510.6,0.00016438,2]
[361302737,1747438245601,-400.0,0.00016438,2]
[361302738,1747438245610,-400.0,0.00016438,2]
[361302739,1747438245620,-477.87,0.00016438,2]
[361302740,1747438245630,-450.0,0.00016438,2]
[361302741,1747438245640,-186.57199035,0.00016438,2]
[361302742,1747438245649,-629.6,0.00016438,2]
[361302743,1747438245659,-400.0,0.00016438,2]
[361302744,1747438245668,-450.0,0.00016438,2]
[361302745,1747438245678,-480.26,0.00016438,2]
[361302746,1747438245687,-894.38,0.00016438,2]
[361302747,1747438245697,-1008.29,0.00016438,2]
[361302748,1747438245706,-400.0,0.00016438,2]
[361302749,1747438245719,-400.0,0.00016438,2]
[361302750,1747438245727,-404.01478898,0.00016438,2]
[361302751,1747438245737,-836.28,0.00016438,2]
[361302752,1747438245746,-400.0,0.00016438,2]
[361302753,1747438245756,-920.6,0.00016438,2]
[361302754,1747438245766,-1630.69,0.00016438,2]
[361302755,1747438245775,-400.0,0.00016438,2]
[361302756,1747438245784,-653.0,0.00016438,2]
[361302757,1747438245794,-400.0,0.00016438,2]
[361302758,1747438245804,-400.0,0.00016438,2]
[361302759,1747438245813,-400.0,0.00016438,2]
[361302760,1747438245823,-400.0,0.00016438,2]
[361302761,1747438245833,-450.0,0.00016438,2]
[361302762,1747438245842,-400.0,0.00016438,2]
[361302763,1747438245852,-785.01,0.00016438,2]
[361302764,1747438245862,-400.0,0.00016438,2]
[361302765,1747438245871,-806.2,0.00016438,2]
[361302766,1747438245881,-676.25,0.00016438,2]
[361302767,1747438245890,-400.0,0.00016438,2]
[361302768,1747438245899,-699.05,0.00016438,2]
[361302769,1747438245909,-567.81,0.00016438,2]
[361302770,1747438245918,-400.0,0.00016438,2]
[361302771,1747438245928,-828.75,0.00016438,2]
[361302772,1747438245938,-801.19,0.00016438,2]
[361302773,1747438245948,-400.0,0.00016438,2]
[361302774,1747438245957,-570.33,0.00016438,2]
[361302775,1747438245967,-400.0,0.00016438,2]
[361302776,1747438245977,-706.47,0.00016438,2]
[361302777,1747438245986,-500.0,0.00016438,2]
[361302778,1747438245996,-500.0,0.00016438,2]
[361302779,1747438246006,-619.57,0.00016438,2]
[361302780,1747438246015,-500.0,0.00016438,2]
[361302781,1747438246024,-500.0,0.00016438,2]
[361302782,1747438246034,-1216.15,0.00016438,2]
[361302783,1747438246043,-873.23,0.00016438,2]
[361302784,1747438246052,-534.29197332,0.00016438,2]
[361302785,1747438246061,-400.0,0.00016438,2]
[361302786,1747438246070,-400.0,0.00016438,2]
[361302787,1747438246080,-1207.23,0.00016438,2]
[361302788,1747438246090,-419.06298748,0.00016438,2]
[361302789,1747438246099,-400.0,0.00016438,2]
[361302790,1747438246108,-400.0,0.00016438,2]
[361302791,1747438246118,-658.75,0.00016438,2]
[361302792,1747438246127,-585.86,0.00016438,2]
[361302793,1747438246136,-400.0,0.00016438,2]
[361302794,1747438246145,-450.0,0.00016438,2]
[361302795,1747438246154,-400.0,0.00016438,2]
[361302796,1747438246164,-400.0,0.00016438,2]
[361302797,1747438246173,-400.0,0.00016438,2]
[361302798,1747438246182,-470.0,0.00016438,2]
[361302799,1747438246192,-671.06,0.00016438,2]
[361302800,1747438246201,-400.0,0.00016438,2]
[361302801,1747438246211,-470.01,0.00016438,2]
[361302802,1747438246220,-670.62,0.00016438,2]
[361302803,1747438246229,-573.07,0.00016438,2]
[361302804,1747438246238,-966.33,0.00016438,2]
[361302805,1747438246248,-518.4,0.00016438,2]
[361302806,1747438246257,-261.63848029,0.00016438,2]
[361302807,1747438246266,-1029.57,0.00016438,2]
[361302808,1747438246275,-739.61,0.00016438,2]
[361302809,1747438246285,-573.96,0.00016438,2]
[361302810,1747438246294,-400.0,0.00016438,2]
[361302811,1747438246303,-400.0,0.00016438,2]
[361302812,1747438246312,-400.0,0.00016438,2]
[361302813,1747438246321,-400.0,0.00016438,2]
[361302814,1747438246331,-400.0,0.00016438,2]
[361302815,1747438246341,-839.29,0.00016438,2]
[361302816,1747438246350,-617.59,0.00016438,2]
[361302817,1747438246359,-400.0,0.00016438,2]
[361302818,1747438246369,-400.0,0.00016438,2]
[361302819,1747438246378,-400.0,0.00016438,2]
[361302820,1747438246387,-526.15264166,0.00016438,2]
[361302821,1747438246397,-400.0,0.00016438,2]
[361302822,1747438246406,-400.0,0.00016438,2]
[361302823,1747438246417,-478.24,0.00016438,2]
[361302824,1747438246426,-400.0,0.00016438,2]
[361302825,1747438246435,-818.09,0.00016438,2]
[361302826,1747438246445,-400.0,0.00016438,2]
[361302827,1747438246454,-400.0,0.00016438,2]
[361302828,1747438246463,-500.0,0.00016438,2]
[361302829,1747438246472,-1180.87,0.00016438,2]
[361302830,1747438246482,-500.0,0.00016438,2]
[361302831,1747438246491,-500.0,0.00016438,2]
[361302832,1747438246500,-500.0,0.00016438,2]
[361302833,1747438246511,-400.0,0.00016438,2]
[361302834,1747438246521,-400.0,0.00016438,2]
[361302835,1747438246530,-619.41,0.00016438,2]
[361302836,1747438246540,-905.72,0.00016438,2]
[361302837,1747438246549,-400.0,0.00016438,2]
[361302838,1747438246559,-400.0,0.00016438,2]
[361302839,1747438246568,-550.38,0.00016438,2]
[361302840,1747438246578,-400.0,0.00016438,2]
[361302841,1747438246587,-813.04,0.00016438,2]
[361302842,1747438246598,-400.0,0.00016438,2]
[361302843,1747438246607,-400.0,0.00016438,2]
[361302844,1747438246617,-400.0,0.00016438,2]
[361302845,1747438246626,-1175.02,0.00016438,2]
[361302846,1747438246636,-418.49,0.00016438,2]
[361302847,1747438246645,-400.0,0.00016438,2]
[361302848,1747438246655,-400.0,0.00016438,2]
[361302849,1747438246665,-500.41,0.00016438,2]
[361302850,1747438246674,-400.0,0.00016438,2]
[361302851,1747438246683,-400.0,0.00016438,2]
[361302852,1747438246693,-1192.64,0.00016438,2]
[361302853,1747438246702,-400.0,0.00016438,2]
[361302854,1747438246712,-401.23,0.00016438,2]
[361302855,1747438246727,-478.62,0.00016438,2]
[361302856,1747438246736,-400.0,0.00016438,2]
[361302857,1747438246746,-439.05,0.00016438,2]
[361302858,1747438246756,-400.0,0.00016438,2]
[361302859,1747438246765,-400.0,0.00016438,2]
[361302860,1747438246775,-400.0,0.00016438,2]
[361302861,1747438246784,-400.0,0.00016438,2]
[361302862,1747438246794,-442.94,0.00016438,2]
[361302863,1747438246803,-400.0,0.00016438,2]
[361302864,1747438246812,-407.84,0.00016438,2]
[361302865,1747438246821,-400.0,0.00016438,2]
[361302866,1747438246831,-661.14,0.00016438,2]
[361302867,1747438246841,-400.0,0.00016438,2]
[361302868,1747438246851,-707.22,0.00016438,2]
[361302869,1747438246861,-1118.1,0.00016438,2]
[361302870,1747438246870,-676.73,0.00016438,2]
[361302871,1747438246880,-731.33,0.00016438,2]
[361302872,1747438246889,-887.91,0.00016438,2]
[361302873,1747438246899,-574.45,0.00016438,2]
[361302874,1747438246909,-400.0,0.00016438,2]
[361302875,1747438246919,-935.86,0.00016438,2]
[361302876,1747438246930,-400.0,0.00016438,2]
[361302877,1747438246939,-531.22,0.00016438,2]
[361302878,1747438246950,-1272.9,0.00016438,2]
[361302879,1747438246961,-1349.62,0.00016438,2]
[361302880,1747438246971,-445.29,0.00016438,2]
[361302881,1747438246980,-454.12,0.00016438,2]
[361302882,1747438246990,-400.0,0.00016438,2]
[361302883,1747438246999,-518.59807257,0.00016438,2]
[361302884,1747438247009,-441.12,0.00016438,2]
[361302885,1747438247018,-666.43,0.00016438,2]
[361302886,1747438247027,-400.0,0.00016438,2]
[361302887,1747438247037,-400.0,0.00016438,2]
[361302888,1747438247046,-400.0,0.00016438,2]
[361302889,1747438247055,-504.76,0.00016438,2]
[361302890,1747438247065,-400.0,0.00016438,2]
[361302891,1747438247075,-400.0,0.00016438,2]
[361302892,1747438247084,-400.0,0.00016438,2]
[361302893,1747438247094,-400.0,0.00016438,2]
[361302894,1747438247103,-690.65,0.00016438,2]
[361302895,1747438247112,-400.0,0.00016438,2]
[361302896,1747438247121,-1207.78,0.00016438,2]
[361302897,1747438247131,-2486.42,0.00016438,2]
[361302898,1747438247140,-357.04012463,0.00016438,2]
[361302899,1747438247149,-580.29,0.00016438,2]
[361302900,1747438247158,-1569.94,0.00016438,2]
[361302901,1747438247168,-400.0,0.00016438,2]
[361302902,1747438247177,-471.72,0.00016438,2]
[361302903,1747438247186,-400.0,0.00016438,2]
[361302904,1747438247195,-400.0,0.00016438,2]
[361302905,1747438247441,-400.0,0.00016438,2]
[361302906,1747438247451,-1988.22,0.00016438,2]
[361302907,1747438247460,-400.0,0.00016438,2]
[361302908,1747438247469,-470.0,0.00016438,2]
[361302909,1747438247478,-1026.86,0.00016438,2]
[361302910,1747438247487,-400.0,0.00016438,2]
[361302911,1747438247496,-259.24433577,0.00016438,2]
[361302912,1747438247506,-400.0,0.00016438,2]
[361302913,1747438247515,-400.0,0.00016438,2]
[361302914,1747438247525,-400.0,0.00016438,2]
[361302915,1747438247534,-716.97,0.00016438,2]
[361302916,1747438247544,-450.0,0.00016438,2]
[361302917,1747438247553,-452.7,0.00016438,2]
[361302918,1747438247563,-1223.83,0.00016438,2]
[361302919,1747438247572,-151.55344983,0.00016438,2]
[361302920,1747438247582,-414.83,0.00016438,2]
[361302921,1747438247592,-400.0,0.00016438,2]
[361302922,1747438247602,-400.0,0.00016438,2]
[361302923,1747438247612,-400.0,0.00016438,2]
[361302924,1747438247622,-400.0,0.00016438,2]
[361302925,1747438247632,-709.88,0.00016438,2]
[361302926,1747438247641,-458.27377844,0.00016438,2]
[361302927,1747438247650,-400.0,0.00016438,2]
[361302928,1747438247660,-445.69,0.00016438,2]
[361302929,1747438247669,-400.0,0.00016438,2]
[361302930,1747438247678,-400.0,0.00016438,2]
[361302931,1747438247687,-645.68,0.00016438,2]
[361302932,1747438247697,-464.14,0.00016438,2]
[361302933,1747438247707,-913.1,0.00016438,2]
[361302934,1747438247720,-552.34,0.00016438,2]
[361302935,1747438247730,-400.0,0.00016438,2]
[361302936,1747438247739,-1177.25,0.00016438,2]
[361302937,1747438247749,-1021.16,0.00016438,2]
[361302938,1747438247759,-400.0,0.00016438,2]
[361302939,1747438247768,-1338.58,0.00016438,2]
[361302940,1747438247777,-1338.25,0.00016438,2]
[361302941,1747438247787,-450.0,0.00016438,2]
[361302942,1747438247796,-636.17,0.00016438,2]
[361302943,1747438247806,-258.56900001,0.00016438,2]
[361302944,1747438247815,-400.0,0.00016438,2]
[361302945,1747438247825,-875.17,0.00016438,2]
[361302946,1747438247835,-363.00050792,0.00016438,2]
[361302947,1747438247845,-573.03,0.00016438,2]
[361302948,1747438247855,-400.0,0.00016438,2]
[361302949,1747438247864,-453.09,0.00016438,2]
[361302950,1747438247873,-400.0,0.00016438,2]
[361302951,1747438247882,-556.29,0.00016438,2]
[361302952,1747438247892,-620.81,0.00016438,2]
[361302953,1747438247901,-400.0,0.00016438,2]
[361302954,1747438247910,-824.82,0.00016438,2]
[361302955,1747438247919,-472.03830285,0.00016438,2]
[361302956,1747438247932,-1316.45,0.00016438,2]
[361302957,1747438247941,-527.49,0.00016438,2]
[361302958,1747438247950,-783.99,0.00016438,2]
[361302959,1747438247960,-400.0,0.00016438,2]
[361302960,1747438247969,-330.95448972,0.00016438,2]
[361302961,1747438247979,-400.0,0.00016438,2]
[361302962,1747438247988,-874.13,0.00016438,2]
[361302963,1747438247999,-421.04,0.00016438,2]
[361302964,1747438248008,-559.89,0.00016438,2]
[361302965,1747438248017,-721.48,0.00016438,2]
[361302966,1747438248027,-800.79,0.00016438,2]
[361302967,1747438248036,-400.0,0.00016438,2]
[361302968,1747438248046,-1063.44,0.00016438,2]
[361302969,1747438248056,-592.96,0.00016438,2]
[361302970,1747438248066,-400.0,0.00016438,2]
[361302971,1747438248075,-400.0,0.00016438,2]
[361302972,1747438248086,-803.08,0.00016438,2]
[361302973,1747438248095,-400.0,0.00016438,2]
[361302974,1747438248105,-400.0,0.00016438,2]
[361302975,1747438248114,-400.0,0.00016438,2]
[361302976,1747438248124,-341.17764193,0.00016438,2]
[361302977,1747438248133,-400.0,0.00016438,2]
[361302978,1747438248142,-400.0,0.00016438,2]
[361302979,1747438248151,-441.66,0.00016438,2]
[361302980,1747438248160,-400.0,0.00016438,2]
[361302981,1747438248169,-400.0,0.00016438,2]
[361302982,1747438248179,-251.13365977,0.00016438,2]
[361302983,1747438248188,-400.0,0.00016438,2]
[361302984,1747438248199,-400.0,0.00016438,2]
[361302985,1747438248208,-400.0,0.00016438,2]
[361302986,1747438248218,-400.0,0.00016438,2]
[361302987,1747438248228,-400.0,0.00016438,2]
[361302988,1747438248238,-421.67,0.00016438,2]
[361302989,1747438248247,-400.0,0.00016438,2]
[361302990,1747438248256,-400.0,0.00016438,2]
[361302991,1747438248266,-1126.08,0.00016438,2]
[361302992,1747438248277,-400.0,0.00016438,2]
[361302993,1747438248287,-466.97,0.00016438,2]